lending/lending_fUSD_20251106
["ID","MTS","AMOUNT","RATE_DAILY","PERIOD"]
[393270567,1762411841204,-1000.0,0.00016721,2]
[393270568,1762411841216,-215.08011066,0.00016721,2]
[393270569,1762411841227,-1000.0,0.00016721,2]
[393270570,1762411841237,-1000.0,0.00016721,2]
[393270571,1762411841246,-1000.0,0.00016721,2]
[393270572,1762411841256,-1205.22,0.00016744,2]
[393270573,1762411841267,-1205.22,0.00016744,2]
[393270574,1762411841276,-1205.22,0.00016744,2]
[393270575,1762411841285,-1205.22,0.00016744,2]
[393270576,1762411841294,-1205.22,0.00016744,2]
[393270577,1762411841303,-1205.22,0.00016744,2]
[393270578,1762411841313,-1205.22,0.00016744,2]
[393270579,1762411841323,-520.03044088,0.00016761,2]
[393270580,1762411841333,-304.89530316,0.00016761,2]
[393270581,1762411841342,-5888.0,0.00016765,2]
[393270582,1762411841351,-195.0,0.00016772,2]
[393270583,1762411841360,-300.0,0.00016772,2]
[393270584,1762411841370,-300.0,0.00016772,2]
[393270585,1762411841379,-300.0,0.00016772,2]
[393270586,1762411841388,-300.0,0.00016772,2]
[393270587,1762411841397,-300.0,0.00016772,2]
[393270588,1762411841407,-200.0,0.00016772,2]
[393270589,1762411841416,-200.50577999,0.00016772,2]
[393270590,1762411841425,-195.0,0.00016772,2]
[393270591,1762411841434,-250.0,0.00016817,2]
[393270592,1762411841444,-250.0,0.00016817,2]
[393270593,1762411841453,-195.0,0.00016817,2]
[393270594,1762411841461,-1637.0,0.00016819,2]
[393270595,1762411841471,-5000.0,0.00016822,2]
[393270596,1762411841480,-300.0,0.00016826,2]
[393270597,1762411841489,-347.75225165,0.00016826,2]
[393270598,1762411841497,-1637.0,0.00016838,2]
[393270599,1762411841507,-420.0,0.0001687,2]
[393270600,1762411841516,-323.0,0.0001687,2]
[393270601,1762411841525,-387.94909827,0.00016885,2]
[393270602,1762411841534,-1680.0,0.00016907,2]
[393270603,1762411841543,-577.81,0.0001695,2]
[393270604,1762411841552,-721.0,0.00016953,2]
[393270605,1762411841562,-203.0,0.00016977,2]
[393270606,1762411841572,-250.0,0.00017,2]
[393270607,1762411841581,-2000.0,0.00017,2]
[393270608,1762411841591,-721.0,0.00017037,2]
[393270609,1762411841602,-1396.76,0.00017041,2]
[393270610,1762411841611,-823.94,0.00017041,2]
[393270611,1762411841620,-387.94909827,0.00017088,2]
[393270612,1762411841631,-347.75225165,0.00017095,2]
[393270613,1762411841641,-500.0,0.000171,6]
[393270614,1762411841651,-176.91,0.00017178,2]
[393270615,1762411841660,-176.91,0.00017178,2]
[393270616,1762411841669,-169.04,0.00017178,2]
[393270617,1762411841678,-176.91,0.00017178,2]
[393270618,1762411841688,-169.04,0.00017178,2]
[393270619,1762411841697,-176.91,0.00017178,2]
[393270620,1762411841706,-169.04,0.00017178,2]
[393270621,1762411841715,-169.04,0.00017178,2]
[393270622,1762411841724,-176.91,0.00017178,2]
[393270623,1762411841734,-176.91,0.00017178,2]
[393270624,1762411841744,-176.91,0.00017178,2]
[393270625,1762411841754,-176.91,0.00017178,2]
[393270626,1762411841764,-3423.0,0.00017191,2]
[393270627,1762411841774,-607.0,0.00017191,2]
[393270628,1762411841783,-574.0,0.00017191,2]
[393270629,1762411841793,-1315.0,0.00017191,2]
[393270630,1762411841807,-820.0,0.00017191,2]
[393270631,1762411841817,-1596.0,0.00017191,2]
[393270632,1762411841826,-1188.0,0.00017191,2]
[393270633,1762411841835,-905.0,0.00017191,2]
[393270634,1762411841847,-1273.0,0.00017191,2]
[393270635,1762411841856,-812.0,0.00017191,2]
[393270636,1762411841865,-2141.0,0.00017191,2]
[393270637,1762411841875,-6658.0,0.00017191,2]
[393270638,1762411841884,-559.0,0.00017191,2]
[393270639,1762411841898,-6475.0,0.00017191,2]
[393270640,1762411841908,-700.0,0.000172,6]
[393270641,1762411841918,-500.0,0.00017205,2]
[393270642,1762411841928,-721.0,0.00017221,2]
[393270643,1762411841938,-577.83,0.00017224,2]
[393270644,1762411841947,-721.0,0.00017228,2]
[393270645,1762411841956,-721.0,0.00017238,2]
[393270646,1762411841966,-520.11501514,0.00017268,2]
[393270647,1762411841976,-1500.0,0.00017268,2]
[393270648,1762411841986,-1500.0,0.00017268,2]
[393270649,1762411841994,-1500.0,0.00017268,2]
[393270650,1762411842004,-1500.0,0.00017268,2]
[393270651,1762411842013,-1278.08512742,0.00017268,2]
[393270652,1762411842022,-500.0,0.00017268,2]
[393270653,1762411842031,-654.07360394,0.00017268,2]
[393270654,1762411842040,-1500.0,0.00017268,2]
[393270655,1762411842050,-1500.0,0.00017268,2]
[393270656,1762411842059,-3937.25369719,0.00017291,2]
[393270657,1762411842068,-387.94909827,0.00017291,2]
[393270658,1762411842076,-151.0,0.00017291,2]
[393270659,1762411842085,-151.0,0.00017291,2]
[393270660,1762411842095,-151.0,0.00017291,2]
[393270661,1762411842104,-1000.0,0.000173,6]
[393270662,1762411842114,-721.0,0.00017306,2]
[393270663,1762411842123,-721.0,0.00017324,2]
[393270664,1762411842132,-721.0,0.00017339,2]
[393270665,1762411842142,-347.75225165,0.00017363,2]
[393270666,1762411842151,-3201.76,0.00017379,2]
[393270667,1762411842159,-176.193,0.00017379,2]
[393270668,1762411842169,-151.0,0.00017379,2]
[393270669,1762411842178,-154.254113,0.00017379,2]
[393270670,1762411842188,-151.0,0.00017379,2]
[393270671,1762411842197,-151.0,0.00017379,2]
[393270672,1762411842207,-151.0,0.00017379,2]
[393270673,1762411842217,-721.0,0.00017397,2]
[393270674,1762411842227,-301.15,0.00017397,2]
[393270675,1762411842236,-1200.0,0.000174,6]
[393270676,1762411842245,-3937.25369719,0.00017494,2]
[393270677,1762411842254,-387.94909827,0.00017494,2]
[393270678,1762411842263,-200.0,0.000175,6]
[393270679,1762411842271,-162.64913491,0.00017527,2]
[393270680,1762411842280,-2168.97,0.00017566,2]
[393270681,1762411842288,-1205.22,0.00017566,2]
[393270682,1762411842298,-1224.69,0.00017566,2]
[393270683,1762411842307,-1205.22,0.00017566,2]
[393270684,1762411842316,-1205.22,0.00017566,2]
[393270685,1762411842325,-1205.22,0.00017566,2]
[393270686,1762411842334,-1169.62774866,0.00017581,7]
[393270687,1762411842344,-1637.0,0.00017594,2]
[393270688,1762411842353,-200.0,0.000176,6]
[393270689,1762411842362,-213.2608074,0.00017605,2]
[393270690,1762411842371,-1637.0,0.00017611,2]
[393270691,1762411842380,-347.75225165,0.00017632,2]
[393270692,1762411842389,-261.32435952,0.00017648,2]
[393270693,1762411842399,-3937.25369719,0.00017697,2]
[393270694,1762411842408,-387.94909827,0.00017697,2]
[393270695,1762411842417,-150.0,0.000177,2]
[393270696,1762411842427,-500.0,0.000177,2]
[393270697,1762411842437,-150.0,0.000177,2]
[393270698,1762411842447,-150.0,0.000177,2]
[393270699,1762411842456,-554.0,0.000177,2]
[393270700,1762411842467,-150.0,0.000177,2]
[393270701,1762411842477,-150.0,0.000177,2]
[393270702,1762411842486,-500.0,0.000177,2]
[393270703,1762411842496,-200.0,0.000177,6]
[393270704,1762411842506,-161.74183392,0.000177,2]
[393270705,1762411842515,-721.0,0.00017723,2]
[393270706,1762411842525,-500.0,0.00017727,2]
[393270707,1762411842534,-221.80400124,0.00017727,2]
[393270708,1762411842544,-9999.99,0.00017728,2]
[393270709,1762411842553,-854.67,0.00017728,2]
[393270710,1762411842562,-1482.32,0.00017728,2]
[393270711,1762411842571,-4084.19,0.00017728,2]
[393270712,1762411842581,-150.99,0.00017728,2]
[393270713,1762411842590,-1043.61,0.00017728,2]
[393270714,1762411842599,-999.99,0.00017728,2]
[393270715,1762411842609,-4961.17,0.00017728,2]
[393270716,1762411842618,-1311.24,0.00017728,2]
[393270717,1762411842627,-19778.52,0.00017728,2]
[393270718,1762411842636,-1083.77,0.00017728,2]
[393270719,1762411842646,-161.7418339,0.00017767,2]
[393270720,1762411842655,-2060.0,0.000178,2]
[393270721,1762411842665,-17925.914755,0.000178,2]
[393270722,1762411842674,-200.0,0.000178,6]
[393270723,1762411842683,-873.08240891,0.00017816,2]
[393270724,1762411842692,-2000.0,0.00017816,2]
[393270725,1762411842701,-2000.0,0.00017816,2]
[393270726,1762411842711,-2000.0,0.00017816,2]
[393270727,1762411842721,-2000.0,0.00017816,2]
[393270728,1762411842731,-2022.50601876,0.00017816,2]
[393270729,1762411842744,-2338.02865,0.0001782,2]
[393270730,1762411842754,-1223.18376974,0.0001782,2]
[393270731,1762411842763,-155.237313,0.00017828,3]
[393270732,1762411842772,-153.391848,0.00017828,3]
[393270733,1762411842781,-161.7418339,0.00017833,2]
[393270734,1762411842791,-500.0,0.00017837,2]
[393270735,1762411842800,-150.0,0.00017837,2]
[393270736,1762411842810,-150.0,0.00017837,2]
[393270737,1762411842819,-554.0,0.00017837,2]
[393270738,1762411842828,-150.0,0.00017837,2]
[393270739,1762411842838,-500.0,0.00017837,2]
[393270741,1762411842847,-150.0,0.00017837,2]
[393270742,1762411842856,-150.0,0.00017837,2]
[393270744,1762411842866,-150.54651287,0.00017837,2]
[393270746,1762411842875,-150.0,0.00017837,2]
[393270748,1762411842885,-500.0,0.00017837,2]
[393270750,1762411842896,-198.50837477,0.00017837,2]
[393270752,1762411842907,-150.0,0.00017837,2]
[393270754,1762411842916,-205.03214734,0.00017837,2]
[393270755,1762411842926,-150.0,0.00017837,2]
[393270756,1762411842935,-150.0,0.00017837,2]
[393270757,1762411842947,-500.0,0.00017837,2]
[393270758,1762411842956,-150.0,0.00017837,2]
[393270759,1762411842965,-213.2608074,0.00017837,2]
[393270760,1762411842976,-155.237313,0.00017854,3]
[393270761,1762411842986,-153.391848,0.00017854,3]
[393270762,1762411842996,-500.0,0.00017856,2]
[393270763,1762411843005,-200.0,0.00017856,2]
[393270764,1762411843015,-2500.0,0.00017865,3]
[393270765,1762411843024,-2500.0,0.00017874,3]
[393270766,1762411843034,-158.00941,0.0001788,3]
[393270767,1762411843043,-159.652743,0.0001788,3]
[393270768,1762411843054,-155.237313,0.0001788,3]
[393270770,1762411843064,-158.086052,0.0001788,3]
[393270772,1762411843073,-153.391848,0.0001788,3]
[393270774,1762411843083,-2500.0,0.00017882,3]
[393270776,1762411843093,-2500.0,0.00017891,3]
[393270777,1762411843102,-721.0,0.00017892,2]
[393270779,1762411843111,-540.88402296,0.000179,3]
[393270781,1762411843121,-2500.0,0.000179,3]
[393270783,1762411843131,-3937.25369719,0.000179,2]
[393270784,1762411843140,-464.72965546,0.000179,2]
[393270785,1762411843150,-387.94909827,0.000179,2]
[393270786,1762411843160,-2500.0,0.000179,3]
[393270787,1762411843170,-600.0,0.000179,6]
[393270789,1762411843179,-5396.62361844,0.000179,2]
[393270791,1762411843189,-156.242591,0.00017905,3]
[393270793,1762411843199,-155.031619,0.00017905,3]
[393270795,1762411843209,-153.5764,0.00017905,3]
[393270797,1762411843219,-158.00941,0.00017905,3]
[393270798,1762411843227,-159.652743,0.00017905,3]
[393270799,1762411843236,-155.237313,0.00017905,3]
[393270800,1762411843245,-158.086052,0.00017905,3]
[393270801,1762411843254,-158.086052,0.00017905,3]
[393270802,1762411843263,-153.391848,0.00017905,3]
[393270803,1762411843273,-186.261537,0.00017905,3]
[393270804,1762411843281,-158.086052,0.00017905,3]
[393270805,1762411843290,-210.679219,0.00017905,3]
[393270806,1762411843299,-155.031618,0.00017905,3]
[393270807,1762411843308,-153.576401,0.00017905,3]
[393270808,1762411843317,-186.26153,0.00017905,3]
[393270809,1762411843327,-158.086052,0.00017905,3]
[393270810,1762411843335,-210.679211,0.00017905,3]
[393270811,1762411843344,-186.26153,0.00017905,3]
[393270812,1762411843353,-210.679211,0.00017905,3]
[393270813,1762411843363,-186.26153,0.00017905,3]
[393270814,1762411843371,-210.679211,0.00017905,3]
[393270815,1762411843381,-2338.02866,0.0001793,2]
[393270816,1762411843391,-151.0,0.0001793,2]
[393270817,1762411843401,-277.06162,0.0001793,2]
[393270818,1762411843410,-721.0,0.00017933,2]
[393270819,1762411843419,-163.0,0.00017973,2]
[393270820,1762411843428,-500.0,0.00017973,2]
[393270821,1762411843438,-173.56770186,0.00017973,2]
[393270822,1762411843447,-183.4285495,0.00017973,2]
[393270823,1762411843456,-220.37778316,0.00017973,2]
[393270824,1762411843465,-500.0,0.00017973,2]
[393270825,1762411843475,-500.0,0.00017973,2]
[393270826,1762411843484,-406.62378491,0.00017973,2]
[393270827,1762411843493,-160.50194543,0.00017973,2]
[393270828,1762411843502,-500.0,0.00017973,2]
[393270829,1762411843511,-404.88651497,0.00017973,2]
[393270830,1762411843520,-500.0,0.00017973,2]
[393270831,1762411843529,-500.0,0.00017973,2]
[393270832,1762411843538,-506.28852507,0.00017973,2]
[393270833,1762411843547,-500.0,0.00017973,2]
[393270834,1762411843556,-500.0,0.00017973,2]
[393270835,1762411843565,-231.42602229,0.00017973,2]
[393270836,1762411843575,-500.0,0.00017973,2]
[393270837,1762411843584,-351.16553114,0.00017973,2]
[393270838,1762411843593,-500.0,0.00017973,2]
[393270839,1762411843602,-459.61733602,0.00017973,2]
[393270840,1762411843611,-500.0,0.00017973,2]
[393270841,1762411843620,-516.45251666,0.00017973,2]
[393270842,1762411843630,-419.7902568,0.00017973,2]
[393270843,1762411843640,-500.0,0.00017973,2]
[393270844,1762411843649,-500.0,0.00017973,2]
[393270845,1762411843658,-500.0,0.00017973,2]
[393270846,1762411843667,-500.0,0.00017973,2]
[393270847,1762411843676,-500.0,0.00017973,2]
[393270848,1762411843686,-500.0,0.00017973,2]
[393270849,1762411843695,-500.0,0.00017973,2]
[393270850,1762411843705,-500.0,0.00017973,2]
[393270851,1762411843714,-634.78303561,0.00017973,2]
[393270852,1762411843723,-500.0,0.00017973,2]
[393270853,1762411843732,-500.0,0.00017973,2]
[393270854,1762411843742,-500.0,0.00017973,2]
[393270855,1762411843752,-225.356362,0.00017973,2]
[393270856,1762411843761,-151.0,0.00017973,2]
[393270857,1762411843771,-151.0,0.00017973,2]
[393270858,1762411843779,-190.518165,0.00017973,2]
[393270859,1762411843789,-157.72267326,0.00017974,2]
[393270860,1762411843798,-150.0,0.00017974,2]
[393270861,1762411843807,-554.0,0.00017974,2]
[393270862,1762411843816,-500.0,0.00017974,2]
[393270863,1762411843825,-228.39525195,0.00017974,2]
[393270864,1762411843834,-150.0,0.00017974,2]
[393270865,1762411843842,-150.0,0.00017974,2]
[393270866,1762411843852,-500.0,0.00017974,2]
[393270867,1762411843862,-150.0,0.00017974,2]
[393270868,1762411843871,-200.84185402,0.00017974,2]
[393270869,1762411843880,-155.18319964,0.00017974,2]
[393270870,1762411843889,-500.0,0.00017974,2]
[393270871,1762411843904,-150.0,0.00017974,2]
[393270872,1762411843913,-500.0,0.00017982,2]
[393270873,1762411843922,-612.95330032,0.0001799,2]
[393270874,1762411843932,-612.95330032,0.0001799,2]
[393270875,1762411843941,-612.95330032,0.0001799,2]
[393270876,1762411843951,-150.0,0.00017999,2]
[393270877,1762411843960,-287.004,0.00017999,2]
[393270878,1762411843977,-158.00941,0.00017999,7]
[393270879,1762411843987,-159.652743,0.00017999,7]
[393270880,1762411843996,-155.237313,0.00017999,7]
[393270881,1762411844006,-155.237313,0.00017999,7]
[393270882,1762411844016,-158.086052,0.00017999,7]
[393270883,1762411844025,-155.237313,0.00017999,7]
[393270884,1762411844034,-153.391848,0.00017999,7]
[393270885,1762411844042,-153.391848,0.00017999,7]
[393270886,1762411844051,-153.391848,0.00017999,7]
[393270887,1762411844060,-300.0,0.00017999,2]
[393270888,1762411844069,-500.0,0.00017999,2]
[393270889,1762411844078,-500.0,0.00017999,2]
[393270890,1762411844087,-500.0,0.00017999,2]
[393270891,1762411844097,-500.0,0.00017999,2]
[393270892,1762411844106,-500.0,0.00017999,2]
[393270893,1762411844116,-500.0,0.00017999,2]
[393270894,1762411844125,-500.0,0.00017999,2]
[393270895,1762411844135,-500.0,0.00017999,2]
[393270896,1762411844145,-500.0,0.00017999,2]
[393270897,1762411844155,-500.0,0.00017999,2]
[393270898,1762411844164,-500.0,0.00017999,2]
[393270899,1762411844173,-541.62569463,0.00017999,2]
[393270900,1762411844183,-296.87113101,0.00017999,2]
[393270901,1762411844192,-125936.40794977,0.00018,2]
[393270902,1762411844207,-427.92,0.00018,2]
[393270903,1762411844446,-25536.63793508,0.00018,2]
[393270904,1762411844458,-1954.05774176,0.00018,2]
[393270905,1762411844469,-510.43469043,0.00018,2]
[393270906,1762411844708,-453.0,0.00017804,2]
[393270909,1762411846272,-381.67576988,0.00016744,2]
[393270910,1762411846286,-287.25,0.00016744,2]
[393270911,1762411846659,-17.13060823,0.00016744,2]
[393271025,1762411926099,200.0,0.00038583,30]
[393271026,1762411926488,500.0,0.00038583,30]
[393271027,1762411928680,151.0,0.00038583,30]
[393271028,1762411929317,151.0,0.00038583,30]
[393271029,1762411929967,151.0,0.00038583,30]
[393271030,1762411930578,151.0,0.00038583,30]
[393271031,1762411931182,151.0,0.00038583,30]
[393271032,1762411931969,500.0,0.00038583,30]
[393271033,1762411932040,151.0,0.00038583,30]
[393271034,1762411932575,500.0,0.00038583,30]
[393271035,1762411932644,151.0,0.00038583,30]
[393271036,1762411933184,500.0,0.00038583,30]
[393271037,1762411933476,151.0,0.00038583,30]
[393271038,1762411933822,500.0,0.00038583,30]
[393271039,1762411934178,151.0,0.00038583,30]
[393271040,1762411934473,500.0,0.00038583,30]
[393271041,1762411934716,151.0,0.00038583,30]
[393271042,1762411935094,500.0,0.00038583,30]
[393271043,1762411935349,151.0,0.00038583,30]
[393271044,1762411940906,200.0,0.00038583,30]
[393271046,1762412067624,150.0,0.00014991,2]
[393271047,1762412068249,150.0,0.00014991,120]
[393271048,1762412103135,500.0,0.00014973,2]
[393271049,1762412131328,500.0,0.00038584,120]
[393271050,1762412131583,500.0,0.00038584,120]
[393271051,1762412131820,501.18330377,0.00038584,120]
[393271052,1762412144234,32621.68574564,0.00038584,30]
[393271053,1762412228098,396.27559919,0.00038584,120]
[393271054,1762412231421,429.79083028,0.00038584,120]
[393271055,1762412251313,179.21893353,0.00038584,120]
[393271056,1762412290329,409.16,0.00014991,2]
[393271057,1762412351595,10000.01,0.00014991,2]
[393271058,1762412403099,500.0,0.00014973,2]
[393271059,1762412405265,677.92831288,0.00014991,2]
[393271060,1762412406553,646.96422124,0.00014991,2]
[393271061,1762412436679,1000.0,0.00014991,2]
[393271062,1762412462252,151.0,0.00014991,2]
[393271063,1762412462354,151.81429351,0.00014991,2]
[393271064,1762412536479,500.0,0.0003858,120]
[393271065,1762412536741,500.0,0.0003858,120]
[393271066,1762412537024,500.0,0.0003858,120]
[393271067,1762412537272,500.0,0.0003858,120]
[393271068,1762412537543,500.0,0.0003858,120]
[393271069,1762412537800,500.0,0.0003858,120]
[393271070,1762412538104,500.0,0.0003858,120]
[393271071,1762412538345,500.0,0.0003858,120]
[393271072,1762412538586,500.0,0.0003858,120]
[393271073,1762412538838,500.0,0.0003858,120]
[393271074,1762412539161,500.0,0.0003858,120]
[393271075,1762412539326,500.0,0.0003858,120]
[393271076,1762412539562,500.0,0.0003858,120]
[393271077,1762412539796,500.0,0.0003858,120]
[393271078,1762412540076,500.0,0.0003858,120]
[393271079,1762412540312,500.0,0.0003858,120]
[393271080,1762412540548,402.25780554,0.0003858,120]
[393271081,1762412607344,337.29756358,0.0003858,120]
[393271082,1762412641841,1369.11822332,0.0003858,120]
[393271084,1762412676315,922.96,0.00013699,2]
[393271085,1762412717804,500.0,0.00038585,120]
[393271086,1762412718086,500.0,0.00038585,120]
[393271087,1762412718351,500.0,0.00038585,120]
[393271088,1762412718593,500.0,0.00038585,120]
[393271089,1762412718830,162.97549564,0.00038585,120]
[393271092,1762412825371,500.0,0.00038585,120]
[393271093,1762412825967,500.0,0.00038585,120]
[393271094,1762412826721,500.0,0.00038585,120]
[393271095,1762412827402,500.0,0.00038585,120]
[393271096,1762412827582,250.0,0.00038585,120]
[393271097,1762412828006,500.0,0.00038585,120]
[393271098,1762412828188,250.0,0.00038585,120]
[393271099,1762412828624,500.0,0.00038585,120]
[393271100,1762412828927,250.0,0.00038585,120]
[393271101,1762412829232,500.0,0.00038585,120]
[393271102,1762412829521,250.0,0.00038585,120]
[393271103,1762412829873,500.0,0.00038585,120]
[393271104,1762412830114,250.0,0.00038585,120]
[393271105,1762412830500,500.0,0.00038585,120]
[393271106,1762412830739,250.0,0.00038585,120]
[393271107,1762412831117,500.0,0.00038585,120]
[393271108,1762412831376,250.0,0.00038585,120]
[393271109,1762412831712,500.0,0.00038585,120]
[393271110,1762412832011,250.0,0.00038585,120]
[393271111,1762412832771,250.0,0.00038585,120]
[393271112,1762412833411,250.0,0.00038585,120]
[393271113,1762412833794,379.7686959,0.00038585,120]
[393271114,1762412834041,250.0,0.00038585,120]
[393271115,1762412942596,10000.01,0.00015092,2]
[393271116,1762412942827,10000.01,0.00015092,2]
[393271117,1762412942849,10000.01,0.00015092,2]
[393271118,1762412942872,10000.01,0.00015092,2]
[393271119,1762412942894,10000.01,0.00015092,2]
[393271120,1762412942916,10000.01,0.00015092,2]
[393271121,1762412942948,10000.01,0.00015092,2]
[393271122,1762412942975,10000.01,0.00015092,2]
[393271123,1762412942999,10000.01,0.00015092,2]
[393271124,1762412943023,10000.01,0.00015092,2]
[393271125,1762412944359,-316.14544598,0.00015092,2]
[393271134,1762413032294,-300.0,0.00015091,2]
[393271135,1762413032308,-1200.0,0.00015091,2]
[393271136,1762413032317,-297.24222236,0.00015091,2]
[393271137,1762413032327,-3241.71963359,0.00015092,2]
[393271138,1762413032339,-1542.02411124,0.00015092,2]
[393271139,1762413032427,-69522.09080919,0.00015092,2]
[393271140,1762413032436,-1102.93,0.00015092,2]
[393271141,1762413032445,-500.0,0.00015456,2]
[393271142,1762413032455,-250.0,0.00015462,2]
[393271143,1762413032464,-195.0,0.00015462,2]
[393271144,1762413032474,-195.0,0.00015525,2]
[393271145,1762413032483,-300.0,0.00015551,2]
[393271146,1762413032493,-300.0,0.00015551,2]
[393271147,1762413032503,-1200.0,0.00015552,2]
[393271148,1762413032512,-500.0,0.00015552,2]
[393271149,1762413032522,-500.0,0.00015552,2]
[393271150,1762413032531,-500.0,0.00015552,2]
[393271151,1762413032541,-500.0,0.00015552,2]
[393271153,1762413032551,-500.0,0.00015552,2]
[393271155,1762413032561,-500.0,0.00015552,2]
[393271156,1762413032570,-500.0,0.00015552,2]
[393271157,1762413032579,-500.0,0.00015552,2]
[393271158,1762413032588,-500.0,0.00015552,2]
[393271159,1762413032598,-500.0,0.00015552,2]
[393271160,1762413032608,-500.0,0.00015552,2]
[393271161,1762413032621,-500.0,0.00015552,2]
[393271162,1762413032630,-500.0,0.00015552,2]
[393271163,1762413032640,-500.0,0.00015552,2]
[393271164,1762413032649,-500.0,0.00015552,2]
[393271165,1762413032658,-500.0,0.00015552,2]
[393271166,1762413032668,-528.35277471,0.00015552,2]
[393271167,1762413032677,-500.0,0.00015552,2]
[393271168,1762413032686,-500.0,0.00015552,2]
[393271170,1762413032696,-500.0,0.00015552,2]
[393271172,1762413032705,-500.0,0.00015552,2]
[393271174,1762413032715,-500.0,0.00015552,2]
[393271177,1762413032724,-500.0,0.00015552,2]
[393271179,1762413032733,-500.0,0.00015552,2]
[393271182,1762413032743,-500.0,0.00015552,2]
[393271184,1762413032752,-500.0,0.00015552,2]
[393271187,1762413032763,-500.0,0.00015552,2]
[393271189,1762413032772,-500.0,0.00015552,2]
[393271192,1762413032782,-500.0,0.00015552,2]
[393271195,1762413032791,-500.0,0.00015552,2]
[393271198,1762413032800,-500.0,0.00015552,2]
[393271200,1762413032809,-500.0,0.00015552,2]
[393271203,1762413032821,-500.0,0.00015552,2]
[393271206,1762413032830,-500.0,0.00015552,2]
[393271209,1762413032839,-500.0,0.00015552,2]
[393271211,1762413032849,-500.0,0.00015552,2]
[393271213,1762413032858,-500.0,0.00015552,2]
[393271214,1762413032867,-500.0,0.00015552,2]
[393271216,1762413032876,-500.0,0.00015552,2]
[393271218,1762413032885,-500.0,0.00015552,2]
[393271220,1762413032894,-500.0,0.00015552,2]
[393271222,1762413032904,-500.0,0.00015552,2]
[393271223,1762413032913,-500.0,0.00015552,2]
[393271225,1762413032922,-500.0,0.00015552,2]
[393271226,1762413032931,-500.0,0.00015552,2]
[393271227,1762413032940,-500.0,0.00015552,2]
[393271228,1762413032949,-500.0,0.00015552,2]
[393271229,1762413032958,-500.0,0.00015552,2]
[393271230,1762413032968,-500.0,0.00015552,2]
[393271231,1762413032977,-550.0,0.00015552,2]
[393271232,1762413032985,-500.0,0.00015552,2]
[393271233,1762413032994,-500.0,0.00015552,2]
[393271234,1762413033004,-500.0,0.00015552,2]
[393271235,1762413033017,-500.0,0.00015552,2]
[393271236,1762413033256,-500.0,0.00015552,2]
[393271237,1762413033268,-500.0,0.00015552,2]
[393271238,1762413033278,-500.0,0.00015552,2]
[393271239,1762413033287,-500.0,0.00015552,2]
[393271240,1762413033300,-500.0,0.00015552,2]
[393271241,1762413033310,-500.0,0.00015552,2]
[393271242,1762413033319,-500.0,0.00015552,2]
[393271243,1762413033328,-500.0,0.00015552,2]
[393271244,1762413033338,-500.0,0.00015552,2]
[393271245,1762413033348,-500.0,0.00015552,2]
[393271246,1762413033357,-500.0,0.00015552,2]